fUST/lending_fUST_20260612
["ID","MTS","AMOUNT","RATE_DAILY","PERIOD"]
[424874913,1781223047000,-150.3,0.00034683,3]
[424874903,1781223047000,-151.0,0.00034361,7]
[424874998,1781224232000,-685.1595902,0.00031716,2]
[424874960,1781224232000,-518.61607577,0.00022413,9]
[424874971,1781224232000,-492.63814366,0.00022413,9]
[424874968,1781224232000,-433.45811007,0.00022413,9]
[424874978,1781224232000,-3555.2876705,0.00022413,9]
[424874982,1781224232000,-210.75503773,0.00024782,2]
[424874985,1781224232000,-186.0,0.00029595,2]
[424874986,1781224232000,-444.0,0.00029595,2]
[424874990,1781224232000,-364.34298673,0.00030051,2]
[424874980,1781224232000,-3693.83640766,0.00022639,9]
[424874993,1781224232000,-694.3958486,0.00031094,2]
[424875014,1781224232000,-500.0,0.00032742,2]
[424875016,1781224232000,-563.90583706,0.00032742,2]
[424875008,1781224232000,-186.0,0.00032595,2]
[424875011,1781224232000,-444.0,0.00032595,2]
[424875018,1781224232000,-65.22466485,0.00032742,2]
[424875004,1781224232000,-769.05815496,0.00032567,2]
[424875000,1781224232000,-652.7317321,0.00032083,2]
[424874996,1781224232000,-1781.8804596,0.00031094,2]
[424875006,1781224232000,-160.0,0.00032567,2]
[424875002,1781224232000,-160.5669078,0.00032226,2]
[424875157,1781224238000,-278.39005459,0.00032742,2]
[424875153,1781224238000,-10.33338143,0.00032742,2]
[424875155,1781224238000,-500.0,0.00032742,2]
[424875145,1781224238000,-350.32474758,0.00032742,2]
[424875142,1781224238000,-434.77533515,0.00032742,2]
[424875147,1781224238000,-149.67525242,0.00032742,2]
[424875144,1781224238000,-500.0,0.00032742,2]
[424875149,1781224238000,-489.66661857,0.00032742,2]
[424875159,1781224238000,-1937.6054068,0.00032744,2]
[424875166,1781224238000,-288.66871217,0.00033398,30]
[424875161,1781224238000,-6861.11917262,0.00032744,2]
[424875164,1781224238000,-750.03467738,0.00032744,2]
[424875178,1781224238000,-150.31,0.00034213,2]
[424875186,1781224238000,-295.02195997,0.00034699,7]
[424875184,1781224238000,-500.0,0.00034699,7]
[424875188,1781224238000,-920.17834866,0.000347,2]
[424875180,1781224238000,-152.0,0.00034482,30]
[424875176,1781224238000,-152.0,0.00033836,7]
[424875174,1781224238000,-311.33128783,0.00033398,30]
[424875182,1781224238000,-1171.42498674,0.00034637,2]
[424875463,1781224241000,-363.632055,0.000347,2]
[424875459,1781224241000,-581.59161548,0.000347,2]
[424875457,1781224241000,-1662.54163905,0.000347,2]
[424875467,1781224243000,-1029.78697456,0.000347,2]
[424875466,1781224243000,-19164.18977073,0.000347,2]
[424875488,1781224246000,-30523.5169904,0.000347,2]
[424875487,1781224246000,-1257.029997,0.000347,2]
[424875489,1781224247000,-3402.57028946,0.000347,2]
[424875494,1781224441000,5000.0,0.00024658,30]
[424875495,1781224463000,5000.0,0.00024658,30]
[424875497,1781224478000,303.0,0.00024658,30]
[424875498,1781224486000,5000.0,0.00024658,30]
[424875548,1781225433000,-2059.44085017,0.0003,2]
[424875518,1781225433000,-876.04006851,0.00019987,9]
[424875521,1781225433000,-190.18723938,0.000234,2]
[424875522,1781225433000,-190.18723938,0.000236,2]
[424875520,1781225433000,-160.7562287,0.00020189,2]
[424875519,1781225433000,-4123.95993149,0.00019987,9]
[424875524,1781225433000,-190.18723938,0.000241,2]
[424875523,1781225433000,-190.18723938,0.000239,2]
[424875526,1781225433000,-250.4624388,0.00025858,2]
[424875525,1781225433000,-500.0,0.00025858,2]
[424875531,1781225433000,-250.0,0.00026717,2]
[424875528,1781225433000,-161.945897,0.00026342,2]
[424875532,1781225433000,-9925.11756773,0.00026796,2]
[424875527,1781225433000,-14974.5283036,0.00025859,2]
[424875530,1781225433000,-7867.6670543,0.00026667,2]
[424875529,1781225433000,-1507.613731,0.00026667,2]
[424875534,1781225433000,-244.63465898,0.00026943,2]
[424875547,1781225433000,-5788.46476277,0.0003,2]
[424875545,1781225433000,-110.94597852,0.00029999,2]
[424875549,1781225433000,-2347.97246076,0.0003,2]
[424875546,1781225433000,-389.05402148,0.00029999,2]
[424875540,1781225433000,-444.0,0.00029513,2]
[424875543,1781225433000,-500.0,0.00029999,2]
[424875537,1781225433000,-152.0,0.00028329,2]
[424875539,1781225433000,-186.0,0.00029513,2]
[424875535,1781225433000,-500.0,0.00026943,2]
[424875544,1781225433000,-603.98244919,0.00029999,2]
[424875541,1781225433000,-500.0,0.00029999,2]
[424875536,1781225433000,-152.0,0.00028273,2]
[424875542,1781225433000,-166.43687895,0.00029999,2]
[424875538,1781225433000,-200.370455,0.00028542,2]
[424875533,1781225433000,-255.36534102,0.00026943,2]
[424875820,1781225438000,-2747.83798997,0.0003,2]
[424875827,1781225447000,-9557.2486452,0.0003,2]
[424875857,1781226014000,374.03,5e-05,2]
[424875914,1781226631000,-5000.0,0.00012754,2]
[424875916,1781226631000,-1818.0479625,0.00013013,2]
[424875915,1781226631000,-5000.0,0.00012883,2]
[424875953,1781226638000,-500.0,0.00017399,2]
[424875935,1781226638000,-300.0,0.00015299,2]
[424875938,1781226638000,-300.0,0.00015299,2]
[424875943,1781226638000,-300.0,0.00015299,2]
[424875940,1781226638000,-300.0,0.00015299,2]
[424875945,1781226638000,-300.0,0.00015299,2]
[424875939,1781226638000,-300.0,0.00015299,2]
[424875951,1781226638000,-500.0,0.00017399,2]
[424875937,1781226638000,-300.0,0.00015299,2]
[424875949,1781226638000,-3865.1130733,0.00017022,2]
[424875967,1781226638000,-423.36312613,0.00017748,7]
[424875977,1781226638000,-166.439,0.00018832,2]
[424875957,1781226638000,-500.0,0.000174,2]
[424875973,1781226638000,-1177.64005681,0.00018728,2]
[424875975,1781226638000,-423.36312613,0.00018792,7]
[424875979,1781226638000,-180.742676,0.00019108,2]
[424875959,1781226638000,-500.0,0.000174,2]
[424875941,1781226638000,-300.0,0.00015299,2]
[424875947,1781226638000,-300.0,0.00015299,2]
[424875933,1781226638000,-300.0,0.00015299,2]
[424875961,1781226638000,-423.36312614,0.000174,7]
[424875918,1781226638000,-5000.0,0.00012883,2]
[424875920,1781226638000,-151.0,0.00013145,2]
[424875921,1781226638000,-284.12275325,0.00013551,14]
[424875919,1781226638000,-3181.9520375,0.00013013,2]
[424875922,1781226638000,-3848.6678386,0.00013667,2]
[424875928,1781226638000,-300.0,0.00015299,2]
[424875936,1781226638000,-300.0,0.00015299,2]
[424875925,1781226638000,-19405.0050274,0.00015,2]
[424875934,1781226638000,-300.0,0.00015299,2]
[424875927,1781226638000,-1177.64005681,0.00015199,2]
[424875923,1781226638000,-1000.0,0.00013699,2]
[424875924,1781226638000,-500.0,0.00014999,2]
[424875929,1781226638000,-143.39325078,0.00015299,2]
[424875930,1781226638000,-156.60674922,0.00015299,2]
[424875932,1781226638000,-300.0,0.00015299,2]
[424875926,1781226638000,-477.9949726,0.00015,2]
[424875969,1781226638000,-423.36312613,0.0001827,7]
[424875996,1781226638000,-509909.28084023,0.0002,2]
[424875971,1781226638000,-180.742676,0.00018336,2]
[424876011,1781226638000,-151.31,0.00022667,7]
[424876017,1781226638000,-159.05,0.00022717,7]
[424876007,1781226638000,-280.9132053,0.00021865,2]
[424876012,1781226638000,-181.49,0.00022686,7]
[424876015,1781226638000,-169.41,0.00022695,7]
[424876002,1781226638000,-300.0,0.0002055,3]
[424875999,1781226638000,-201.954884,0.0002,2]
[424876019,1781226638000,-181.51,0.00022736,7]
[424876004,1781226638000,-180.742676,0.00020651,2]
[424876013,1781226638000,-152.05,0.00022686,7]
[424876016,1781226638000,-159.5,0.00022695,7]
[424876008,1781226638000,-180.742676,0.00022195,2]
[424876006,1781226638000,-180.742676,0.00021423,2]
[424876010,1781226638000,-159.05,0.00022667,7]
[424876001,1781226638000,-201.954884,0.0002,2]
[424875965,1781226638000,-2170.81129064,0.000176,2]
[424876003,1781226638000,-300.0,0.00020551,2]
[424876018,1781226638000,-151.31,0.00022717,7]
[424876009,1781226638000,-1177.64005681,0.00022256,2]
[424876005,1781226638000,-864.0,0.00021259,10]
[424876014,1781226638000,-212.87,0.00022695,7]
[424875963,1781226638000,-600.0,0.0001757,2]
[424875955,1781226638000,-500.0,0.00017399,2]
[424875980,1781226638000,-201.954884,0.00019178,2]
[424875994,1781226638000,-1938.33363543,0.0002,2]
[424875995,1781226638000,-205.85879886,0.0002,2]
[424875989,1781226638000,-423.36312614,0.00019488,7]
[424875997,1781226638000,-151.0,0.0002,2]
[424875984,1781226638000,-201.954884,0.00019178,2]
[424875991,1781226638000,-180.742676,0.0001988,2]
[424875992,1781226638000,-1228.73005906,0.000199,2]
[424875993,1781226638000,-612.3,0.0001999,3]
[424875985,1781226638000,-201.954884,0.00019178,2]
[424875987,1781226638000,-720.0,0.00019326,2]
[424876000,1781226638000,-201.954884,0.0002,2]
[424875982,1781226638000,-201.954884,0.00019178,2]
[424875998,1781226638000,-201.954884,0.0002,2]
[424876074,1781226639000,-296.36492789,0.00022971,2]
[424876067,1781226639000,-201.954884,0.00022971,2]
[424876072,1781226639000,-822.62478044,0.00022971,2]
[424876070,1781226639000,-215.08,0.00022971,2]
[424876075,1781226639000,-647.02451304,0.00022971,2]
[424876066,1781226639000,-201.954884,0.00022971,2]
[424876060,1781226639000,-159.5,0.00022945,7]
[424876059,1781226639000,-177.90765743,0.00022937,2]
[424876061,1781226639000,-151.31,0.00022967,7]
[424876063,1781226639000,-201.954884,0.00022971,2]
[424876064,1781226639000,-201.954884,0.00022971,2]
[424876054,1781226639000,-175.76050604,0.00022937,2]
[424876058,1781226639000,-159.94578907,0.00022937,2]
[424876068,1781226639000,-201.954884,0.00022971,2]
[424876081,1781226639000,-515.40601205,0.00022971,2]
[424876069,1781226639000,-201.954884,0.00022971,2]
[424876071,1781226639000,-300.0,0.00022971,2]
[424876065,1781226639000,-201.954884,0.00022971,2]
[424876083,1781226639000,-475.06228948,0.00022971,2]
[424876085,1781226639000,-1213.57371409,0.00022971,2]
[424876078,1781226639000,-713.33631544,0.00022971,2]
[424876084,1781226639000,-192.05011929,0.00022971,2]
[424876089,1781226639000,-391.41823238,0.00022971,2]
[424876087,1781226639000,-661.24155924,0.00022971,2]
[424876086,1781226639000,-1418.49127881,0.00022971,2]
[424876077,1781226639000,-158.99201601,0.00022971,2]
[424876080,1781226639000,-159.96779174,0.00022971,2]
[424876062,1781226639000,-201.954884,0.00022971,2]
[424876076,1781226639000,-1382.74834922,0.00022971,2]
[424876052,1781226639000,-197.43633341,0.00022937,2]
[424876025,1781226639000,-151.31,0.00022767,7]
[424876057,1781226639000,-222.65735485,0.00022937,2]
[424876020,1781226639000,-152.05,0.00022736,7]
[424876021,1781226639000,-212.87994758,0.00022745,7]
[424876023,1781226639000,-159.5,0.00022745,7]
[424876030,1781226639000,-159.5,0.00022795,7]
[424876037,1781226639000,-152.05,0.00022836,7]
[424876041,1781226639000,-169.43345862,0.00022845,7]
[424876043,1781226639000,-159.06524523,0.00022867,7]
[424876026,1781226639000,-387.74510865,0.00022767,7]
[424876028,1781226639000,-169.41,0.00022795,7]
[424876034,1781226639000,-151.31,0.00022817,7]
[424876024,1781226639000,-159.05,0.00022767,7]
[424876082,1781226639000,-590.29394825,0.00022971,2]
[424876032,1781226639000,-159.05,0.00022817,7]
[424876056,1781226639000,-151.16683629,0.00022937,2]
[424876046,1781226639000,-159.5,0.00022895,7]
[424876044,1781226639000,-151.31,0.00022867,7]
[424876027,1781226639000,-152.05,0.00022786,7]
[424876022,1781226639000,-169.41,0.00022745,7]
[424876050,1781226639000,-387.74510865,0.00022937,7]
[424876049,1781226639000,-152.05,0.00022936,7]
[424876039,1781226639000,-156.0,0.00022837,2]
[424876048,1781226639000,-151.31,0.00022917,7]
[424876045,1781226639000,-152.05,0.00022886,7]
[424876035,1781226639000,-387.74510865,0.00022817,7]
[424876047,1781226639000,-460.0,0.000229,2]
[424876051,1781226639000,-176.52924033,0.00022937,2]
[424876053,1781226639000,-164.38863115,0.00022937,2]
[424876055,1781226639000,-162.9088668,0.00022937,2]
[424876042,1781226639000,-159.5,0.00022845,7]
[424876079,1781226639000,-750.62834638,0.00022971,2]
[424876073,1781226639000,-332.07043053,0.00022971,2]
[424876091,1781226639000,-21050.32629386,0.00022971,2]
[424876124,1781226639000,-151.31,0.00023317,7]
[424876119,1781226639000,-151.31,0.00023217,7]
[424876120,1781226639000,-152.05,0.00023236,7]
[424876123,1781226639000,-728.2399,0.000233,2]
[424876125,1781226639000,-152.09973789,0.00023336,7]
[424876132,1781226639000,-151.31,0.00023417,7]
[424876134,1781226639000,-160.0,0.00023419,2]
[424876138,1781226639000,-555.404254,0.00023525,14]
[424876133,1781226639000,-769.05815496,0.00023419,2]
[424876129,1781226639000,-151.0,0.000234,2]
[424876140,1781226639000,-201.954884,0.00023525,2]
[424876139,1781226639000,-950.808509,0.00023525,14]
[424876136,1781226639000,-151.31,0.00023517,7]
[424876137,1781226639000,-160.0,0.00023525,14]
[424876135,1781226639000,-151.31,0.00023467,7]
[424876141,1781226639000,-201.954884,0.00023525,2]
[424876131,1781226639000,-151.0,0.000234,2]
[424876130,1781226639000,-151.0,0.000234,2]
[424876143,1781226639000,-201.954892,0.00023525,2]
[424876146,1781226639000,-151.31,0.00023667,7]
[424876151,1781226639000,-151.31,0.00023817,7]
[424876142,1781226639000,-201.954884,0.00023525,2]
[424876145,1781226639000,-151.31,0.00023617,7]
[424876150,1781226639000,-151.31,0.00023767,7]
[424876149,1781226639000,-377.284693,0.0002376,14]
[424876152,1781226639000,-151.31,0.00023867,7]
[424876148,1781226639000,-151.31,0.00023717,7]
[424876088,1781226639000,-2920.0,0.00022971,2]
[424876147,1781226639000,-169.05532388,0.000237,2]
[424876122,1781226639000,-152.05,0.00023286,7]
[424876121,1781226639000,-151.31,0.00023267,7]
[424876144,1781226639000,-151.31,0.00023567,7]
[424876116,1781226639000,-160.0,0.00023136,7]
[424876126,1781226639000,-151.31,0.00023367,7]
[424876102,1781226639000,-162.29855797,0.00022971,2]
[424876090,1781226639000,-204.41879147,0.00022971,2]
[424876093,1781226639000,-152.63147653,0.00022971,2]
[424876092,1781226639000,-3196.87814872,0.00022971,2]
[424876096,1781226639000,-328.69476178,0.00022971,2]
[424876097,1781226639000,-163.67682481,0.00022971,30]
[424876094,1781226639000,-262.55211907,0.00022971,2]
[424876095,1781226639000,-679.57384994,0.00022971,2]
[424876098,1781226639000,-1059.47673506,0.00022971,2]
[424876099,1781226639000,-160.0,0.00022971,2]
[424876100,1781226639000,-1300.0,0.00022971,2]
[424876114,1781226639000,-151.31,0.00023117,7]
[424876106,1781226639000,-152.05,0.00022986,7]
[424876101,1781226639000,-601.08456978,0.00022971,2]
[424876107,1781226639000,-159.5,0.00022995,7]
[424876103,1781226639000,-295.25794855,0.00022971,2]
[424876128,1781226639000,-169.05532388,0.000234,2]
[424876127,1781226639000,-1000.0,0.00023385,10]
[424876117,1781226639000,-151.31,0.00023167,7]
[424876111,1781226639000,-151.31,0.00023067,7]
[424876108,1781226639000,-151.31,0.00023017,7]
[424876109,1781226639000,-152.05,0.00023036,7]
[424876118,1781226639000,-152.05,0.00023186,7]
[424876104,1781226639000,-593.79001569,0.00022971,2]
[424876105,1781226639000,-492.00924587,0.00022971,2]
[424876115,1781226639000,-152.05,0.00023136,7]
[424876112,1781226639000,-152.05,0.00023086,7]
[424876110,1781226639000,-159.5,0.00023045,7]
[424876113,1781226639000,-159.56598951,0.00023095,7]
[424876206,1781226640000,-186.0,0.00029523,2]
[424876204,1781226640000,-1000.0,0.00028296,30]
[424876194,1781226640000,-266.92924624,0.000261,3]
[424876189,1781226640000,-226.370816,0.00024948,14]
[424876187,1781226640000,-1045.6499,0.000247,2]
[424876191,1781226640000,-1000.0,0.00025724,10]
[424876184,1781226640000,-151.0,0.00024658,6]
[424876181,1781226640000,-151.31,0.00024517,7]
[424876185,1781226640000,-151.0,0.00024658,4]
[424876186,1781226640000,-151.52173839,0.00024667,7]
[424876190,1781226640000,-314.22,0.00025614,2]
[424876188,1781226640000,-999.727658,0.00024701,14]
[424876199,1781226640000,-314.22,0.00026895,2]
[424876197,1781226640000,-206.32,0.00026575,2]
[424876202,1781226640000,-206.32,0.00027123,2]
[424876200,1781226640000,-479.8703465,0.00026943,2]
[424876198,1781226640000,-206.32,0.00026849,2]
[424876205,1781226640000,-492.0,0.00028296,30]
[424876196,1781226640000,-444.0,0.00026523,2]
[424876203,1781226640000,-206.45,0.00027397,2]
[424876216,1781226640000,-1000.0,0.00031125,30]
[424876218,1781226640000,-1000.0,0.00031429,7]
[424876217,1781226640000,-791.0,0.00031125,30]
[424876219,1781226640000,-417.15472785,0.00032143,7]
[424876210,1781226640000,-1000.0,0.0003,7]
[424876207,1781226640000,-412.888,0.00029523,2]
[424876183,1781226640000,-151.31,0.00024617,7]
[424876209,1781226640000,-830.22942656,0.0003,2]
[424876201,1781226640000,-333.242552,0.00027054,14]
[424876193,1781226640000,-202.439982,0.00026044,14]
[424876178,1781226640000,-151.31,0.00024367,7]
[424876182,1781226640000,-151.31,0.00024567,7]
[424876208,1781226640000,-216.7471587,0.0002994,2]
[424876153,1781226640000,-169.05532388,0.000239,2]
[424876154,1781226640000,-457.5072253,0.000239,2]
[424876156,1781226640000,-457.5072253,0.000239,2]
[424876158,1781226640000,-457.5072253,0.000239,2]
[424876157,1781226640000,-326.6035524,0.000239,2]
[424876155,1781226640000,-326.6035524,0.000239,2]
[424876166,1781226640000,-151.31,0.00023917,7]
[424876165,1781226640000,-322.2318696,0.000239,2]
[424876160,1781226640000,-326.6035524,0.000239,2]
[424876162,1781226640000,-326.6035524,0.000239,2]
[424876164,1781226640000,-326.6035524,0.000239,2]
[424876163,1781226640000,-326.6035524,0.000239,2]
[424876192,1781226640000,-244.0,0.00025724,10]
[424876159,1781226640000,-326.6035524,0.000239,2]
[424876167,1781226640000,-151.31,0.00023967,7]
[424876168,1781226640000,-151.31,0.00024017,7]
[424876169,1781226640000,-151.31,0.00024067,7]
[424876180,1781226640000,-151.31,0.00024467,7]
[424876170,1781226640000,-198.81631131,0.00024084,7]
[424876171,1781226640000,-387.74510865,0.00024084,7]
[424876173,1781226640000,-151.31,0.00024167,7]
[424876177,1781226640000,-314.22,0.00024333,2]
[424876179,1781226640000,-151.31,0.00024417,7]
[424876172,1781226640000,-151.31,0.00024117,7]
[424876176,1781226640000,-151.31,0.00024317,7]
[424876175,1781226640000,-151.31,0.00024267,7]
[424876174,1781226640000,-151.31,0.00024217,7]
[424876161,1781226640000,-457.1474872,0.000239,2]
[424876211,1781226640000,-1000.0,0.00030714,7]
[424876195,1781226640000,-186.0,0.00026523,2]
[424876214,1781226640000,-422.9232623,0.00030722,2]
[424876260,1781226640000,-151.0,0.000328,2]
[424876261,1781226640000,-151.0,0.000328,2]
[424876248,1781226640000,-326.6035524,0.000328,2]
[424876251,1781226640000,-317.1524561,0.000328,2]
[424876250,1781226640000,-457.5072253,0.000328,2]
[424876254,1781226640000,-326.6035524,0.000328,2]
[424876253,1781226640000,-326.6035524,0.000328,2]
[424876256,1781226640000,-151.0,0.000328,2]
[424876258,1781226640000,-151.0,0.000328,2]
[424876257,1781226640000,-151.0,0.000328,2]
[424876255,1781226640000,-326.0279692,0.000328,2]
[424876252,1781226640000,-326.6035524,0.000328,2]
[424876267,1781226640000,-623.22772377,0.00032939,2]
[424876265,1781226640000,-459.54204625,0.00032876,2]
[424876269,1781226640000,-816.96363778,0.00032947,2]
[424876264,1781226640000,-255.30113681,0.00032876,2]
[424876266,1781226640000,-217.0,0.00032877,120]
[424876268,1781226640000,-305.51682447,0.00032947,2]
[424876263,1781226640000,-169.90147062,0.00032876,2]
[424876270,1781226640000,-623.22772377,0.00033093,2]
[424876262,1781226640000,-1000.0,0.00032857,7]
[424876271,1781226640000,-623.22772377,0.00033265,2]
[424876275,1781226640000,-152.0,0.00033377,2]
[424876277,1781226640000,-160.0,0.00033736,3]
[424876272,1781226640000,-152.0,0.00033311,2]
[424876273,1781226640000,-152.0,0.00033311,2]
[424876274,1781226640000,-479.58951706,0.00033361,2]
[424876276,1781226640000,-1000.0,0.00033571,7]
[424876279,1781226640000,-1000.0,0.00034238,30]
[424876259,1781226640000,-151.0,0.000328,2]
[424876249,1781226640000,-326.6035524,0.000328,2]
[424876215,1781226640000,-2606.0209121,0.00030722,2]
[424876246,1781226640000,-326.6035524,0.000328,2]
[424876213,1781226640000,-12199.7181405,0.00030722,2]
[424876212,1781226640000,-1402.117584,0.00030722,2]
[424876221,1781226640000,-795.0,0.000323,2]
[424876220,1781226640000,-1000.0,0.00032143,7]
[424876225,1781226640000,-186.0,0.00032523,2]
[424876222,1781226640000,-152.0,0.00032441,30]
[424876228,1781226640000,-2699.88,0.000328,90]
[424876224,1781226640000,-152.0,0.00032483,30]
[424876244,1781226640000,-326.6035524,0.000328,2]
[424876230,1781226640000,-151.0,0.000328,2]
[424876227,1781226640000,-204.81282987,0.00032585,2]
[424876232,1781226640000,-198.867663,0.000328,2]
[424876278,1781226640000,-355.20892026,0.00034173,2]
[424876231,1781226640000,-151.0,0.000328,2]
[424876223,1781226640000,-152.0,0.00032483,30]
[424876226,1781226640000,-152.0,0.00032548,30]
[424876229,1781226640000,-151.0,0.000328,2]
[424876241,1781226640000,-457.5072253,0.000328,2]
[424876238,1781226640000,-457.5072253,0.000328,2]
[424876236,1781226640000,-457.5072253,0.000328,2]
[424876245,1781226640000,-457.5072253,0.000328,2]
[424876243,1781226640000,-457.5072253,0.000328,2]
[424876242,1781226640000,-326.6035524,0.000328,2]
[424876237,1781226640000,-326.4116912,0.000328,2]
[424876247,1781226640000,-457.5072253,0.000328,2]
[424876234,1781226640000,-457.5072253,0.000328,2]
[424876240,1781226640000,-457.5072253,0.000328,2]
[424876239,1781226640000,-457.1474874,0.000328,2]
[424876233,1781226640000,-326.6035524,0.000328,2]
[424876235,1781226640000,-326.6035524,0.000328,2]
[424876326,1781226641000,-500.0,0.00035616,18]
[424876328,1781226641000,-647.81863674,0.00035616,18]
[424876331,1781226641000,-500.0,0.00035616,18]
[424876324,1781226641000,-500.0,0.00035616,18]
[424876321,1781226641000,-500.0,0.00035616,18]
[424876312,1781226641000,-200.0,0.00035615,10]
[424876315,1781226641000,-500.0,0.00035616,18]
[424876316,1781226641000,-500.0,0.00035616,18]
[424876311,1781226641000,-186.0,0.00035523,2]
[424876318,1781226641000,-481.69529696,0.00035616,18]
[424876314,1781226641000,-1180.3952,0.00035616,18]
[424876313,1781226641000,-200.0,0.00035615,10]
[424876333,1781226641000,-500.0,0.00035616,18]
[424876339,1781226641000,-500.0,0.00035616,18]
[424876327,1781226641000,-892.48,0.00035616,18]
[424876322,1781226641000,-500.0,0.00035616,18]
[424876329,1781226641000,-500.0,0.00035616,18]
[424876325,1781226641000,-500.0,0.00035616,18]
[424876323,1781226641000,-500.0,0.00035616,18]
[424876332,1781226641000,-500.0,0.00035616,18]
[424876335,1781226641000,-729.12,0.00035616,18]
[424876346,1781226641000,-500.0,0.00035616,18]
[424876334,1781226641000,-500.0,0.00035616,18]
[424876345,1781226641000,-500.0,0.00035616,18]
[424876338,1781226641000,-500.0,0.00035616,18]
[424876337,1781226641000,-500.0,0.00035616,18]
[424876341,1781226641000,-500.0,0.00035616,18]
[424876317,1781226641000,-500.0,0.00035616,18]
[424876330,1781226641000,-484.46085515,0.00035616,18]
[424876310,1781226641000,-160.0,0.00035238,4]
[424876296,1781226641000,-160.0,0.0003494,2]
[424876320,1781226641000,-500.0,0.00035616,18]
[424876336,1781226641000,-500.0,0.00035616,18]
[424876282,1781226641000,-1000.0,0.00034286,7]
[424876280,1781226641000,-1000.0,0.00034238,30]
[424876294,1781226641000,-300.0,0.00034795,37]
[424876283,1781226641000,-152.0,0.00034357,7]
[424876295,1781226641000,-221.94879446,0.00034895,7]
[424876284,1781226641000,-152.0,0.00034357,7]
[424876287,1781226641000,-152.0,0.00034418,7]
[424876285,1781226641000,-151.0,0.000344,15]
[424876286,1781226641000,-152.0,0.00034418,7]
[424876289,1781226641000,-1200.0,0.0003452,120]
[424876292,1781226641000,-363.3188732,0.00034625,7]
[424876293,1781226641000,-155.0,0.00034775,7]
[424876288,1781226641000,-152.0,0.0003448,7]
[424876291,1781226641000,-152.0,0.00034543,7]
[424876290,1781226641000,-1300.0,0.0003452,120]
[424876301,1781226641000,-200.0,0.00035,14]
[424876305,1781226641000,-202.311971,0.00035,2]
[424876307,1781226641000,-528.46080483,0.00035,13]
[424876298,1781226641000,-1111.827619,0.0003498,9]
[424876300,1781226641000,-1011.88824368,0.00035,7]
[424876297,1781226641000,-417.15472785,0.00034975,2]
[424876302,1781226641000,-5867.37535994,0.00035,120]
[424876306,1781226641000,-154.28,0.00035,120]
[424876299,1781226641000,-79437.11547274,0.00035,30]
[424876303,1781226641000,-10000.0,0.00035,2]
[424876304,1781226641000,-1000.0,0.00035,9]
[424876309,1781226641000,-211.57276029,0.00035127,7]
[424876308,1781226641000,-824.52809188,0.00035,7]
[424876319,1781226641000,-500.0,0.00035616,18]
[424876281,1781226641000,-2566.89,0.0003428,110]
[424876340,1781226641000,-500.0,0.00035616,18]
[424876344,1781226641000,-500.0,0.00035616,18]
[424876381,1781226641000,-500.0,0.00035616,18]
[424876375,1781226641000,-500.0,0.00035616,18]
[424876386,1781226641000,-500.0,0.00035616,18]
[424876385,1781226641000,-500.0,0.00035616,18]
[424876378,1781226641000,-500.0,0.00035616,18]
[424876384,1781226641000,-609.58,0.00035616,18]
[424876379,1781226641000,-500.0,0.00035616,18]
[424876383,1781226641000,-500.0,0.00035616,18]
[424876398,1781226641000,-500.0,0.00035616,18]
[424876397,1781226641000,-500.0,0.00035616,18]
[424876394,1781226641000,-500.0,0.00035616,18]